fUST/lending_fUST_20240703
["ID","MTS","AMOUNT","RATE_DAILY","PERIOD"]
[331037528,1720021850996,-500.0,0.0001541,2]
[331037529,1720021851005,-156.69099991,0.0001541,2]
[331037530,1720021851014,-500.0,0.0001541,2]
[331037531,1720021851024,-500.0,0.0001541,2]
[331037532,1720021851033,-504.94597235,0.0001541,2]
[331037533,1720021851043,-500.0,0.0001541,2]
[331037534,1720021851053,-565.94071053,0.0001541,2]
[331037535,1720021851062,-500.0,0.0001541,2]
[331037536,1720021851071,-500.0,0.0001541,2]
[331037537,1720021851081,-500.0,0.0001541,2]
[331037538,1720021851091,-513.20602938,0.0001541,2]
[331037539,1720021851100,-500.0,0.0001541,2]
[331037540,1720021851111,-500.0,0.0001541,2]
[331037541,1720021851120,-500.0,0.0001541,2]
[331037542,1720021851128,-500.0,0.0001541,2]
[331037543,1720021851138,-502.63895941,0.0001541,2]
[331037544,1720021851147,-500.0,0.0001541,2]
[331037545,1720021851156,-500.0,0.0001541,2]
[331037546,1720021851166,-500.0,0.0001541,2]
[331037547,1720021851176,-223.31593996,0.0001541,2]
[331037548,1720021851185,-341.22531934,0.0001541,2]
[331037549,1720021851195,-502.38947976,0.0001541,2]
[331037550,1720021851205,-500.0,0.0001541,2]
[331037551,1720021851214,-500.0,0.0001541,2]
[331037552,1720021851223,-411.73765799,0.0001541,2]
[331037553,1720021851233,-500.0,0.0001541,2]
[331037554,1720021851243,-500.0,0.0001541,2]
[331037555,1720021851252,-500.0,0.0001541,2]
[331037556,1720021851262,-500.0,0.0001541,2]
[331037557,1720021851273,-500.0,0.0001541,2]
[331037558,1720021851282,-500.0,0.0001541,2]
[331037559,1720021851291,-500.0,0.0001541,2]
[331037560,1720021851300,-500.0,0.0001541,2]
[331037561,1720021851309,-518.24989507,0.0001541,2]
[331037562,1720021851318,-500.0,0.0001541,2]
[331037563,1720021851328,-500.0,0.0001541,2]
[331037564,1720021851337,-500.0,0.0001541,2]
[331037565,1720021851346,-500.0,0.0001541,2]
[331037566,1720021851355,-500.0,0.0001541,2]
[331037567,1720021851365,-500.0,0.0001541,2]
[331037568,1720021851374,-368.247161,0.0001541,2]
[331037569,1720021851383,-463.66807264,0.0001541,2]
[331037570,1720021851392,-368.247161,0.0001541,2]
[331037571,1720021851401,-500.0,0.0001541,2]
[331037572,1720021851410,-1444.836265,0.0001541,2]
[331037573,1720021851419,-500.0,0.0001541,2]
[331037574,1720021851429,-500.0,0.0001541,2]
[331037575,1720021851438,-1444.836265,0.0001541,2]
[331037576,1720021851448,-500.0,0.0001541,2]
[331037577,1720021851457,-500.0,0.0001541,2]
[331037578,1720021851466,-500.0,0.0001541,2]
[331037579,1720021851477,-151.0,0.0001541,2]
[331037580,1720021851485,-500.0,0.0001541,2]
[331037581,1720021851495,-514.39746959,0.0001541,2]
[331037582,1720021851506,-500.0,0.0001541,2]
[331037583,1720021851515,-500.0,0.0001541,2]
[331037584,1720021851524,-500.0,0.0001541,2]
[331037585,1720021851534,-151.0,0.0001541,2]
[331037586,1720021851545,-500.0,0.0001541,2]
[331037587,1720021851554,-500.0,0.0001541,2]
[331037588,1720021851562,-500.0,0.0001541,2]
[331037589,1720021851571,-500.0,0.0001541,2]
[331037590,1720021851580,-500.0,0.0001541,2]
[331037591,1720021851589,-516.16345102,0.0001541,2]
[331037592,1720021851599,-507.36346321,0.0001541,2]
[331037593,1720021851608,-151.0,0.0001541,2]
[331037594,1720021851617,-500.0,0.0001541,2]
[331037595,1720021851626,-151.0,0.0001541,2]
[331037596,1720021851635,-151.0,0.0001541,2]
[331037597,1720021851643,-559.108345,0.0001541,2]
[331037598,1720021851652,-559.108345,0.0001541,2]
[331037599,1720021851662,-500.0,0.0001541,2]
[331037600,1720021851671,-151.0,0.0001541,2]
[331037601,1720021851680,-229.146789,0.0001541,2]
[331037602,1720021851689,-151.0,0.0001541,2]
[331037603,1720021851698,-529.45982667,0.0001541,2]
[331037604,1720021851707,-229.146789,0.0001541,2]
[331037605,1720021851716,-216.6447478,0.00015427,2]
[331037606,1720021851725,-500.0,0.00015545,2]
[331037607,1720021851734,-500.0,0.00015545,2]
[331037608,1720021851743,-500.0,0.00015545,2]
[331037609,1720021851752,-500.0,0.00015545,2]
[331037610,1720021851762,-500.0,0.00015545,2]
[331037611,1720021851771,-500.0,0.00015545,2]
[331037612,1720021851780,-500.0,0.00015545,2]
[331037613,1720021851789,-500.0,0.00015545,2]
[331037614,1720021851798,-500.0,0.00015545,2]
[331037615,1720021851808,-500.0,0.00015545,2]
[331037616,1720021851817,-500.0,0.00015545,2]
[331037617,1720021851826,-500.0,0.00015545,2]
[331037618,1720021851836,-500.0,0.00015545,2]
[331037619,1720021851845,-838.7,0.00015545,2]
[331037620,1720021851855,-500.0,0.00015545,2]
[331037621,1720021851865,-500.0,0.00015545,2]
[331037622,1720021851874,-500.0,0.00015545,2]
[331037623,1720021851884,-539.14859586,0.00015545,2]
[331037624,1720021851895,-501.81461074,0.00015545,2]
[331037625,1720021851904,-8443.31,0.00015545,2]
[331037626,1720021851918,-500.0,0.00015545,2]
[331037627,1720021851927,-500.0,0.00015545,2]
[331037628,1720021851937,-866.09,0.00015545,2]
[331037629,1720021851946,-500.0,0.00015545,2]
[331037630,1720021851956,-500.0,0.00015546,2]
[331037631,1720021851965,-500.0,0.00015546,2]
[331037632,1720021851974,-4395.66,0.00015546,2]
[331037633,1720021851983,-500.0,0.00015546,2]
[331037634,1720021851993,-500.0,0.00015546,2]
[331037635,1720021852004,-500.0,0.00015546,2]
[331037636,1720021852013,-500.0,0.00015546,2]
[331037637,1720021852022,-500.0,0.00015546,2]
[331037638,1720021852031,-500.0,0.00015546,2]
[331037639,1720021852040,-2038.09,0.00015546,2]
[331037640,1720021852049,-500.0,0.00015546,2]
[331037641,1720021852058,-500.0,0.00015546,2]
[331037642,1720021852068,-500.0,0.00015546,2]
[331037643,1720021852077,-789.44,0.00015546,2]
[331037644,1720021852087,-500.0,0.00015546,2]
[331037645,1720021852096,-500.0,0.00015546,2]
[331037646,1720021852105,-500.0,0.00015546,2]
[331037647,1720021852116,-1267.63,0.00015546,2]
[331037648,1720021852126,-201.0347046,0.00015546,2]
[331037649,1720021852135,-946.73,0.00015546,2]
[331037650,1720021852144,-500.0,0.00015546,2]
[331037651,1720021852153,-628.29,0.00015546,2]
[331037652,1720021852162,-500.0,0.00015546,2]
[331037653,1720021852171,-500.0,0.00015546,2]
[331037654,1720021852180,-500.0,0.00015546,2]
[331037655,1720021852189,-500.0,0.00015546,2]
[331037656,1720021852198,-500.0,0.00015546,2]
[331037657,1720021852207,-3517.93,0.00015546,2]
[331037658,1720021852217,-500.0,0.00015546,2]
[331037659,1720021852226,-500.0,0.00015546,2]
[331037660,1720021852235,-500.0,0.00015547,2]
[331037661,1720021852244,-510.31,0.00015547,2]
[331037662,1720021852253,-500.0,0.00015547,2]
[331037663,1720021852262,-630.38,0.00015547,2]
[331037664,1720021852271,-162.374602,0.00015547,2]
[331037665,1720021852280,-833.448572,0.00015547,2]
[331037666,1720021852290,-162.374602,0.00015547,2]
[331037667,1720021852299,-500.0,0.00015547,2]
[331037668,1720021852310,-833.448572,0.00015547,2]
[331037669,1720021852321,-500.0,0.00015547,2]
[331037670,1720021852330,-500.0,0.00015547,2]
[331037671,1720021852339,-500.0,0.00015547,2]
[331037672,1720021852349,-500.0,0.00015547,2]
[331037673,1720021852360,-500.0,0.00015547,2]
[331037674,1720021852369,-500.0,0.00015547,2]
[331037675,1720021852378,-500.0,0.00015547,2]
[331037676,1720021852387,-500.0,0.00015547,2]
[331037677,1720021852396,-500.0,0.00015547,2]
[331037678,1720021852405,-807.053756,0.00015547,2]
[331037679,1720021852414,-1232.16,0.00015547,2]
[331037680,1720021852424,-500.0,0.00015547,2]
[331037681,1720021852433,-807.053756,0.00015547,2]
[331037682,1720021852442,-500.0,0.00015547,2]
[331037683,1720021852451,-543.96553448,0.00015547,2]
[331037684,1720021852460,-503.32042959,0.00015547,2]
[331037685,1720021852469,-1100.18,0.00015547,2]
[331037686,1720021852478,-151.0,0.00015547,2]
[331037687,1720021852488,-500.0,0.00015547,2]
[331037688,1720021852497,-500.0,0.00015547,2]
[331037689,1720021852505,-500.0,0.00015547,2]
[331037690,1720021852515,-269.641914,0.00015547,2]
[331037691,1720021852523,-269.641914,0.00015547,2]
[331037692,1720021852532,-160.566935,0.00015547,2]
[331037693,1720021852541,-160.566935,0.00015547,2]
[331037694,1720021852550,-500.0,0.00015547,2]
[331037695,1720021852559,-500.0,0.00015547,2]
[331037696,1720021852568,-500.0,0.00015547,2]
[331037697,1720021852577,-500.0,0.00015547,2]
[331037698,1720021852586,-500.0,0.00015547,2]
[331037699,1720021852595,-500.0,0.00015547,2]
[331037700,1720021852604,-500.0,0.00015547,2]
[331037701,1720021852614,-500.0,0.00015547,2]
[331037702,1720021852623,-500.0,0.00015547,2]
[331037703,1720021852631,-500.0,0.00015547,2]
[331037704,1720021852640,-151.0,0.00015547,2]
[331037705,1720021852649,-500.0,0.00015547,2]
[331037706,1720021852658,-500.0,0.00015547,2]
[331037707,1720021852667,-500.0,0.00015547,2]
[331037708,1720021852676,-500.0,0.00015547,2]
[331037709,1720021852687,-500.0,0.00015547,2]
[331037710,1720021852697,-500.0,0.00015547,2]
[331037711,1720021852707,-500.0,0.00015547,2]
[331037712,1720021852716,-151.0,0.00015547,2]
[331037713,1720021852726,-151.0,0.00015547,2]
[331037714,1720021852735,-604.63575969,0.00015547,2]
[331037715,1720021852744,-559.108345,0.00015547,2]
[331037716,1720021852753,-559.108345,0.00015547,2]
[331037717,1720021852763,-151.0,0.00015547,2]
[331037718,1720021852771,-229.146789,0.00015547,2]
[331037719,1720021852780,-151.0,0.00015547,2]
[331037720,1720021852789,-500.0,0.00015547,2]
[331037721,1720021852797,-229.146789,0.00015547,2]
[331037722,1720021852806,-877.0,0.00015554,2]
[331037723,1720021852816,-3312.17,0.00015604,2]
[331037724,1720021852825,-3312.17,0.00015604,2]
[331037725,1720021852834,-3312.17,0.00015604,2]
[331037726,1720021852843,-3312.17,0.00015604,2]
[331037727,1720021852851,-3312.17,0.00015604,2]
[331037728,1720021852862,-3312.17,0.00015604,2]
[331037729,1720021852871,-3312.17,0.00015604,2]
[331037730,1720021852879,-3312.17,0.00015604,2]
[331037731,1720021852888,-368.247161,0.00015604,2]
[331037732,1720021852900,-368.247161,0.00015604,2]
[331037733,1720021852910,-1444.836265,0.00015604,2]
[331037734,1720021852922,-1444.836265,0.00015604,2]
[331037735,1720021852931,-500.0,0.00015604,2]
[331037736,1720021852940,-500.0,0.00015604,2]
[331037737,1720021852950,-500.0,0.00015604,2]
[331037738,1720021852959,-500.0,0.00015604,2]
[331037739,1720021852967,-217.2425305,0.00015604,2]
[331037740,1720021852976,-151.0,0.00015604,2]
[331037741,1720021852985,-500.0,0.00015605,2]
[331037742,1720021852993,-500.0,0.00015605,2]
[331037743,1720021853096,-500.0,0.00015605,2]
[331037744,1720021853105,-500.0,0.00015605,2]
[331037745,1720021853116,-500.0,0.00015605,2]
[331037746,1720021853126,-500.0,0.00015605,2]
[331037747,1720021853135,-500.0,0.00015605,2]
[331037748,1720021853144,-500.0,0.00015605,2]
[331037749,1720021853153,-151.0,0.00015605,2]
[331037750,1720021853162,-1920.25,0.00015605,2]
[331037751,1720021853171,-1920.25,0.00015605,2]
[331037752,1720021853181,-1920.25,0.00015605,2]
[331037753,1720021853190,-1920.25,0.00015605,2]
[331037754,1720021853199,-1920.25,0.00015605,2]
[331037755,1720021853208,-1920.25,0.00015605,2]
[331037756,1720021853217,-1920.25,0.00015605,2]
[331037757,1720021853226,-1920.25,0.00015605,2]
[331037758,1720021853235,-151.0,0.00015605,2]
[331037759,1720021853245,-151.0,0.00015605,2]
[331037760,1720021853255,-559.108345,0.00015605,2]
[331037761,1720021853264,-559.108345,0.00015605,2]
[331037762,1720021853273,-151.0,0.00015605,2]
[331037763,1720021853282,-229.146789,0.00015605,2]
[331037764,1720021853291,-151.0,0.00015605,2]
[331037765,1720021853301,-229.146789,0.00015605,2]
[331037766,1720021853310,-162.374602,0.00015606,2]
[331037767,1720021853319,-833.448572,0.00015606,2]
[331037768,1720021853328,-162.374602,0.00015606,2]
[331037769,1720021853337,-833.448572,0.00015606,2]
[331037770,1720021853346,-807.053756,0.00015606,2]
[331037771,1720021853355,-807.053756,0.00015606,2]
[331037772,1720021853366,-151.0,0.00015606,2]
[331037773,1720021853376,-269.641914,0.00015606,2]
[331037774,1720021853385,-368.247161,0.00015606,2]
[331037775,1720021853394,-269.641914,0.00015606,2]
[331037776,1720021853404,-160.566935,0.00015606,2]
[331037777,1720021853413,-368.247161,0.00015606,2]
[331037778,1720021853423,-160.566935,0.00015606,2]
[331037779,1720021853433,-1444.836265,0.00015606,2]
[331037780,1720021853442,-1444.836265,0.00015606,2]
[331037781,1720021853451,-151.0,0.00015606,2]
[331037782,1720021853461,-500.0,0.00015615,2]
[331037783,1720021853471,-500.0,0.00015615,2]
[331037784,1720021853481,-500.0,0.00015615,2]
[331037785,1720021853492,-500.0,0.00015615,2]
[331037786,1720021853502,-501.38791639,0.00015615,2]
[331037787,1720021853512,-3312.17,0.00015615,2]
[331037788,1720021853521,-3312.17,0.00015615,2]
[331037789,1720021853530,-500.0,0.00015615,2]
[331037790,1720021853539,-500.0,0.00015615,2]
[331037791,1720021853549,-619.70525195,0.00015615,2]
[331037792,1720021853558,-1920.25,0.00015615,2]
[331037793,1720021853567,-1920.25,0.00015615,2]
[331037794,1720021853576,-1920.25,0.00015615,2]
[331037795,1720021853585,-1920.25,0.00015615,2]
[331037796,1720021853594,-1920.25,0.00015615,2]
[331037797,1720021853603,-1920.44405552,0.00015615,2]
[331037798,1720021853613,-151.0,0.00015616,2]
[331037799,1720021853623,-151.0,0.00015616,2]
[331037800,1720021853632,-151.0,0.00015616,2]
[331037801,1720021853641,-278.73058,0.00015616,2]
[331037802,1720021853650,-278.73058,0.00015616,2]
[331037803,1720021853659,-162.374602,0.00015616,2]
[331037804,1720021853668,-833.448572,0.00015616,2]
[331037805,1720021853677,-162.374602,0.00015616,2]
[331037806,1720021853686,-151.0,0.00015616,2]
[331037807,1720021853695,-833.448572,0.00015616,2]
[331037808,1720021853704,-151.0,0.00015616,2]
[331037809,1720021853714,-807.053756,0.00015616,2]
[331037810,1720021853722,-807.053756,0.00015616,2]
[331037811,1720021853732,-151.0,0.00015616,2]
[331037812,1720021853741,-269.641914,0.00015616,2]
[331037813,1720021853750,-368.247161,0.00015616,2]
[331037814,1720021853759,-269.641914,0.00015616,2]
[331037815,1720021853769,-160.566935,0.00015616,2]
[331037816,1720021853778,-368.247161,0.00015616,2]
[331037817,1720021853787,-160.566935,0.00015616,2]
[331037818,1720021853799,-1444.836265,0.00015616,2]
[331037819,1720021853809,-1444.836265,0.00015616,2]
[331037820,1720021853818,-151.0,0.00015616,2]
[331037821,1720021853827,-151.0,0.00015616,2]
[331037822,1720021853836,-151.0,0.00015616,2]
[331037823,1720021853846,-151.0,0.00015616,2]
[331037824,1720021853855,-559.108345,0.00015616,2]
[331037825,1720021853864,-559.108345,0.00015616,2]
[331037826,1720021853874,-151.0,0.00015616,2]
[331037827,1720021853883,-229.146789,0.00015616,2]
[331037828,1720021853893,-530.09510171,0.00015616,2]
[331037829,1720021853902,-530.09510171,0.00015616,2]
[331037830,1720021853912,-530.09510171,0.00015616,2]
[331037831,1720021853924,-530.09510171,0.00015616,2]
[331037832,1720021853933,-530.09510171,0.00015616,2]
[331037833,1720021853942,-530.09510171,0.00015616,2]
[331037834,1720021853951,-530.09510171,0.00015616,2]
[331037835,1720021853963,-530.09510171,0.00015616,2]
[331037836,1720021853972,-530.09510171,0.00015616,2]
[331037837,1720021853982,-530.09510171,0.00015616,2]
[331037838,1720021853992,-530.09510171,0.00015616,2]
[331037839,1720021854002,-530.09510171,0.00015616,2]
[331037840,1720021854012,-530.09510171,0.00015616,2]
[331037842,1720021854022,-530.09510171,0.00015616,2]
[331037843,1720021854031,-530.09510171,0.00015616,2]
[331037844,1720021854041,-530.09510171,0.00015616,2]
[331037845,1720021854050,-530.09510171,0.00015616,2]
[331037846,1720021854060,-530.09510171,0.00015616,2]
[331037847,1720021854069,-530.09510171,0.00015616,2]
[331037848,1720021854079,-530.09510171,0.00015616,2]
[331037849,1720021854088,-530.09510171,0.00015616,2]
[331037850,1720021854098,-530.09510171,0.00015616,2]
[331037851,1720021854107,-530.09510171,0.00015616,2]
[331037852,1720021854118,-530.09510171,0.00015616,2]
[331037853,1720021854128,-530.09510171,0.00015616,2]
[331037854,1720021854138,-530.09510171,0.00015616,2]
[331037855,1720021854148,-530.09510171,0.00015616,2]
[331037856,1720021854157,-530.09510171,0.00015616,2]
[331037857,1720021854166,-530.09510171,0.00015616,2]
[331037858,1720021854176,-530.09510171,0.00015616,2]
[331037859,1720021854185,-530.09510171,0.00015616,2]
[331037860,1720021854194,-530.09510171,0.00015616,2]
[331037861,1720021854204,-530.09510171,0.00015616,2]
[331037862,1720021854214,-530.09510171,0.00015616,2]
[331037863,1720021854224,-530.09510171,0.00015616,2]
[331037864,1720021854234,-530.09510171,0.00015616,2]
[331037865,1720021854244,-530.09510171,0.00015616,2]
[331037866,1720021854254,-530.09510171,0.00015616,2]
[331037867,1720021854263,-530.09510171,0.00015616,2]
[331037868,1720021854272,-530.09510171,0.00015616,2]
[331037869,1720021854282,-530.09510171,0.00015616,2]
[331037870,1720021854291,-530.09510171,0.00015616,2]
[331037871,1720021854300,-530.09510171,0.00015616,2]
[331037872,1720021854310,-530.09510171,0.00015616,2]
[331037873,1720021854319,-530.09510171,0.00015616,2]
[331037874,1720021854328,-530.09510171,0.00015616,2]
[331037875,1720021854338,-530.09510171,0.00015616,2]
[331037876,1720021854347,-530.09510171,0.00015616,2]
[331037877,1720021854356,-530.09510171,0.00015616,2]
[331037878,1720021854368,-530.09510171,0.00015616,2]
[331037879,1720021854377,-530.09510171,0.00015616,2]
[331037880,1720021854387,-530.09510171,0.00015616,2]
[331037881,1720021854397,-530.09510171,0.00015616,2]
[331037882,1720021854407,-530.09510171,0.00015616,2]
[331037883,1720021854416,-530.09510171,0.00015616,2]
[331037884,1720021854426,-530.09510171,0.00015616,2]
[331037885,1720021854435,-530.09510171,0.00015616,2]
[331037886,1720021854445,-530.09510171,0.00015616,2]
[331037887,1720021854454,-530.09510171,0.00015616,2]
[331037888,1720021854463,-530.09510171,0.00015616,2]
[331037889,1720021854472,-530.09510171,0.00015616,2]
[331037890,1720021854482,-203.424652,0.00015616,2]
[331037891,1720021854490,-229.146789,0.00015616,2]
[331037892,1720021854500,-1243.73,0.00015665,2]
[331037893,1720021854509,-608.68,0.00015665,2]
[331037894,1720021854518,-500.0,0.00015665,2]
[331037895,1720021854527,-500.0,0.00015665,2]
[331037896,1720021854536,-500.0,0.00015665,2]
[331037897,1720021854545,-1469.96,0.00015665,2]
[331037898,1720021854553,-500.0,0.00015683,2]
[331037899,1720021854562,-500.0,0.00015683,2]
[331037900,1720021854571,-500.0,0.00015683,2]
[331037901,1720021854580,-500.0,0.00015684,2]
[331037902,1720021854590,-486.07177718,0.00015684,2]
[331037903,1720021854599,-500.0,0.00015684,2]
[331037904,1720021854608,-500.0,0.00015684,2]
[331037905,1720021854618,-500.0,0.00015684,2]
[331037906,1720021854627,-1056.31,0.00015684,2]
[331037907,1720021854637,-500.0,0.00015684,2]
[331037908,1720021854646,-500.0,0.00015684,2]
[331037909,1720021854655,-500.0,0.00015684,2]
[331037910,1720021854664,-500.0,0.00015684,2]
[331037911,1720021854674,-1686.8,0.00015684,2]
[331037912,1720021854683,-505.54,0.00015684,2]
[331037913,1720021854692,-500.0,0.00015684,2]
[331037914,1720021854701,-500.0,0.00015684,2]
[331037915,1720021854711,-500.0,0.00015684,2]
[331037916,1720021854720,-500.0,0.00015684,2]
[331037917,1720021854729,-514.41884185,0.00015684,2]
[331037918,1720021854738,-500.0,0.00015684,2]
[331037919,1720021854748,-226.95995148,0.00015684,2]
[331037920,1720021854757,-500.0,0.00015684,2]
[331037921,1720021854766,-206.10858306,0.00015684,2]
[331037922,1720021854776,-500.0,0.00015684,2]
[331037923,1720021854785,-500.0,0.00015684,2]
[331037924,1720021854794,-500.0,0.00015684,2]
[331037925,1720021854803,-500.0,0.00015684,2]
[331037926,1720021854813,-500.0,0.00015684,2]
[331037927,1720021854822,-500.0,0.00015684,2]
[331037928,1720021854831,-500.0,0.00015684,2]
[331037929,1720021854840,-500.0,0.00015684,2]
[331037930,1720021854849,-508.13333864,0.00015684,2]
[331037931,1720021854859,-503.43360036,0.00015684,2]
[331037932,1720021854870,-503.71037301,0.00015684,2]
[331037933,1720021854879,-500.0,0.00015684,2]
[331037934,1720021854888,-500.0,0.00015684,2]
[331037935,1720021854897,-500.0,0.00015684,2]
[331037936,1720021854907,-500.0,0.00015684,2]
[331037937,1720021854921,-500.0,0.00015684,2]
[331037938,1720021854930,-519.31631342,0.00015684,2]
[331037939,1720021854940,-500.0,0.00015684,2]
[331037940,1720021854950,-500.0,0.00015684,2]
[331037941,1720021854962,-500.0,0.00015684,2]
[331037942,1720021854972,-500.0,0.00015684,2]
[331037943,1720021854982,-500.0,0.00015684,2]
[331037944,1720021854991,-500.0,0.00015684,2]
[331037945,1720021855000,-500.0,0.00015684,2]
[331037946,1720021855010,-500.0,0.00015684,2]
[331037947,1720021855020,-500.0,0.00015684,2]
[331037948,1720021855030,-500.0,0.00015684,2]
[331037949,1720021855039,-500.0,0.00015684,2]
[331037950,1720021855048,-500.0,0.00015684,2]
[331037951,1720021855059,-500.0,0.00015684,2]
[331037952,1720021855068,-500.0,0.00015684,2]
[331037953,1720021855077,-500.0,0.00015684,2]
[331037954,1720021855086,-500.0,0.00015684,2]
[331037955,1720021855096,-151.0,0.00015684,2]
[331037956,1720021855105,-196.01736,0.00015684,2]
[331037957,1720021855114,-500.0,0.00015684,2]
[331037958,1720021855123,-151.0,0.00015684,2]
[331037959,1720021855132,-229.146789,0.00015684,2]
[331037960,1720021855142,-173.96386462,0.00015711,2]
[331037961,1720021855151,-150.0,0.00015718,2]
[331037962,1720021855161,-2000.0,0.000158,2]
[331037963,1720021855170,-2000.0,0.000158,3]
[331037964,1720021855179,-1000.0,0.000158,4]
[331037965,1720021855188,-1000.0,0.000158,5]
[331037966,1720021855198,-151.0,0.000158,2]
[331037967,1720021855207,-559.108345,0.000158,2]
[331037968,1720021855216,-559.108345,0.000158,2]
[331037969,1720021855225,-500.0,0.00015819,2]
[331037970,1720021855234,-500.0,0.00015819,2]
[331037971,1720021855243,-500.0,0.00015819,2]
[331037972,1720021855253,-3312.17,0.00015819,2]
[331037973,1720021855264,-500.0,0.00015819,2]
[331037974,1720021855274,-500.0,0.00015819,2]
[331037975,1720021855283,-500.0,0.00015819,2]
[331037976,1720021855292,-267.46999098,0.00015819,2]
[331037977,1720021855302,-500.0,0.00015819,2]
[331037978,1720021855311,-536.74427997,0.00015819,2]
[331037979,1720021855321,-500.0,0.00015819,2]
[331037980,1720021855419,-500.0,0.00015819,2]
[331037981,1720021855430,-500.0,0.00015819,2]
[331037982,1720021855439,-838.7,0.00015819,2]
[331037983,1720021855449,-500.0,0.00015819,2]
[331037984,1720021855458,-500.0,0.00015819,2]
[331037985,1720021855467,-8443.31,0.00015819,2]
[331037986,1720021855477,-500.0,0.00015819,2]
[331037987,1720021855486,-500.0,0.00015819,2]
[331037988,1720021855496,-866.09,0.00015819,2]
[331037989,1720021855505,-500.0,0.00015819,2]
[331037990,1720021855515,-500.0,0.0001582,2]
[331037991,1720021855524,-500.0,0.0001582,2]
[331037992,1720021855534,-4395.66,0.0001582,2]
[331037993,1720021855543,-383.93311361,0.0001582,2]
[331037994,1720021855553,-500.0,0.0001582,2]
[331037995,1720021855562,-500.0,0.0001582,2]
[331037996,1720021855572,-519.5261134,0.0001582,2]
[331037997,1720021855581,-500.0,0.0001582,2]
[331037998,1720021855591,-500.0,0.0001582,2]
[331037999,1720021855600,-2038.09,0.0001582,2]
[331038000,1720021855609,-500.0,0.0001582,2]
[331038001,1720021855620,-500.0,0.0001582,2]
[331038002,1720021855629,-368.247161,0.0001582,2]
[331038003,1720021855638,-368.247161,0.0001582,2]
[331038004,1720021855647,-1444.836265,0.0001582,2]
[331038005,1720021855656,-537.5122929,0.0001582,2]
[331038006,1720021855666,-1444.836265,0.0001582,2]
[331038007,1720021855675,-789.44,0.0001582,2]
[331038008,1720021855685,-328.39,0.0001582,2]
[331038009,1720021855694,-500.0,0.0001582,2]
[331038010,1720021855703,-500.0,0.0001582,2]
[331038011,1720021855712,-157.179907,0.0001582,2]
[331038012,1720021855722,-1267.63,0.0001582,2]
[331038013,1720021855731,-946.73,0.0001582,2]
[331038014,1720021855740,-500.0,0.0001582,2]
[331038015,1720021855749,-628.29,0.0001582,2]
[331038016,1720021855759,-500.0,0.0001582,2]
[331038017,1720021855768,-500.0,0.0001582,2]
[331038018,1720021855777,-629.41420693,0.0001582,2]
[331038019,1720021855787,-206.58165246,0.0001582,2]
[331038020,1720021855796,-470.8277869,0.0001582,2]
[331038021,1720021855805,-3517.93,0.0001582,2]
[331038022,1720021855815,-630.76889876,0.0001582,2]
[331038023,1720021855825,-500.0,0.0001582,2]
[331038024,1720021855835,-287.25,0.00015821,2]
[331038025,1720021855844,-510.31,0.00015821,2]
[331038026,1720021855853,-500.0,0.00015821,2]
[331038027,1720021855863,-630.38,0.00015821,2]
[331038028,1720021855873,-606.09220766,0.00015821,2]